bitfinex/quotes_SOLUSD_20220208
["timestamp","ask_amount","ask_price","bid_price","bid_amount"]
[1644360078145,19.3047,112.78,112.72,132.0796]
[1644360078844,19.5547,112.78,112.72,132.0796]
[1644360079844,13.3047,112.78,112.72,132.0796]
[1644360080045,13.303,112.79,112.72,132.0796]
[1644360080246,13.303,112.79,112.74,13.3031]
[1644360082148,19.303,112.79,112.73,13.3284]
[1644360082351,19.303,112.79,112.73,13.3044]
[1644360082547,13.303,112.79,112.73,13.3044]
[1644360083149,19.303,112.79,112.73,13.3044]
[1644360085047,19.303,112.79,112.72,0.024]
[1644360085048,19.303,112.79,112.72,13.3296]
[1644360085249,19.303,112.79,112.72,13.5796]
[1644360085451,19.303,112.79,112.72,19.5796]
[1644360086152,19.553,112.79,112.72,19.5796]
[1644360087754,13.553,112.79,112.72,19.5796]
[1644360087962,19.553,112.79,112.72,19.5796]
[1644360088257,13.553,112.79,112.72,19.5796]
[1644360089658,13.553,112.79,112.72,24.0136]
[1644360092063,13.553,112.79,112.72,19.5796]
[1644360092462,13.3022,112.8,112.72,19.5796]
[1644360092663,24.698,112.82,112.73,1.41564751]
[1644360092863,4.433,112.81,112.75,13.3007]
[1644360093063,24.698,112.82,112.75,24.1997]
[1644360093264,24.698,112.82,112.75,24.4737]
[1644360093465,4.433,112.81,112.75,24.4737]
[1644360094670,24.698,112.82,112.75,24.4737]
[1644360094867,37.9981,112.82,112.75,24.4737]
[1644360095067,13.3001,112.82,112.75,24.4737]
[1644360095267,13.3001,112.82,112.75,28.9067]
[1644360095483,4.433,112.83,112.75,117.3567]
[1644360095684,4.433,112.84,112.75,120.31534751]
[1644360095887,4.433,112.84,112.76,92.906]
[1644360096085,4.432,112.88,112.79,13.2932]
[1644360096285,22.7687,112.89,112.8,0.024]
[1644360096486,6.0,112.88,112.8,4.454]
[1644360096689,28.7687,112.89,112.81,0.024]
[1644360096886,28.7687,112.89,112.8,4.704]
[1644360097087,28.7687,112.89,112.81,0.024]
[1644360097688,28.7687,112.89,112.82,13.2924]
[1644360097888,6.0,112.89,112.82,21.4044]
[1644360098091,29.1144,112.92,112.82,110.1044]
[1644360098289,1.26132378,112.94,112.83,94.27064751]
[1644360098492,1.26132378,112.94,112.84,112.5]
[1644360098691,1.26132378,112.94,112.84,120.14164751]
[1644360098892,1.26132378,112.94,112.87,13.2857]
[1644360099192,1.26132378,112.94,112.87,25.7067]
[1644360099392,29.3875,112.95,112.87,25.7067]
[1644360099592,4.429,112.95,112.87,121.54834751]
[1644360100594,1.26132378,112.99,112.87,121.54834751]
[1644360100996,6.0,112.99,112.87,121.54834751]
[1644360101193,0.25,112.99,112.91,13.2791]
[1644360101393,4.676,112.99,112.91,25.5391]
[1644360101594,4.426,112.99,112.91,25.7891]
[1644360101796,4.676,112.99,112.91,25.7891]
[1644360101993,4.676,112.99,112.91,30.2151]
[1644360102194,0.25,112.99,112.91,30.2151]
[1644360102593,10.426,113.01,112.91,30.2151]
[1644360102793,6.25,113.01,112.91,30.2151]
[1644360103596,6.25,113.01,112.91,37.60674751]
[1644360103796,4.676,113.01,112.91,37.60674751]
[1644360104696,4.426,113.01,112.91,37.60674751]
[1644360104896,30.2199,113.02,112.91,37.60674751]
[1644360106100,30.4699,113.02,112.91,31.60674751]
[1644360107498,4.426,113.01,112.91,27.18074751]
[1644360109100,10.426,113.01,112.91,27.18074751]
[1644360109802,4.426,113.01,112.92,4.426]
[1644360110009,4.426,113.01,112.94,13.277]
[1644360110204,4.426,113.01,112.94,23.856]
[1644360110408,4.426,113.01,112.95,4.425]
[1644360110804,4.425,113.03,112.95,0.25]
[1644360111006,45.9868,113.04,112.95,4.674]
[1644360111007,50.4118,113.04,112.95,4.674]
[1644360111208,69.6888,113.04,112.95,4.424]
[1644360111406,69.6888,113.04,112.94,13.277]
[1644360112206,69.9388,113.04,112.94,13.277]
[1644360112606,65.5138,113.04,112.94,13.527]
[1644360113008,52.2368,113.04,112.94,13.527]
[1644360113710,29.6173,113.04,112.94,23.952]
[1644360114010,29.6173,113.04,112.94,17.952]
[1644360114407,29.6173,113.04,112.94,23.952]
[1644360115007,29.3673,113.04,112.94,23.952]
[1644360116011,23.3673,113.04,112.94,23.952]
[1644360116610,29.3673,113.04,112.94,23.952]
[1644360117211,29.3673,113.04,112.94,19.527]
[1644360118717,29.6173,113.04,112.94,19.527]
[1644360119413,29.6173,113.04,112.95,4.425]
[1644360119615,29.3673,113.04,112.95,4.425]
[1644360119816,29.3673,113.04,112.97,13.2747]
[1644360120212,29.3673,113.04,112.97,13.5247]
[1644360121016,29.6173,113.04,112.97,13.5247]
[1644360122841,29.6173,113.04,112.97,13.2747]
[1644360123041,29.6173,113.04,112.97,13.5247]
[1644360123442,29.6173,113.04,112.97,13.2747]
[1644360123643,29.6173,113.04,112.97,13.5247]
[1644360123845,29.6173,113.04,112.97,13.2747]
[1644360125142,30.87862378,113.04,112.97,13.2747]
[1644360125344,35.30262378,113.04,112.97,13.2747]
[1644360125543,29.30262378,113.04,112.97,13.2747]
[1644360126544,24.87862378,113.04,112.97,13.2747]
[1644360127342,1.26132378,113.03,112.97,13.2747]
[1644360128242,1.51132378,113.03,112.97,13.2747]
[1644360129349,1.26132378,113.02,112.97,13.2747]
[1644360129545,1.26132378,113.02,112.96,4.424]
[1644360129746,1.26132378,113.02,112.9,1.25257537]
[1644360129747,1.26132378,113.01,112.92,4.425]
[1644360129944,5.68732378,113.01,112.89,24.6311]
[1644360130147,1.26132378,112.99,112.9,0.25]
[1644360130645,7.26132378,112.99,112.9,0.25]
[1644360130847,29.86952378,112.99,112.9,0.25]
[1644360131244,29.86952378,112.99,112.89,24.8811]
[1644360131445,29.86952378,112.99,112.92,13.2804]
[1644360132848,43.15102378,112.99,112.92,13.2804]
[1644360133853,28.6082,112.99,112.92,13.5304]
[1644360134051,22.6082,112.99,112.92,13.5304]
[1644360135151,22.6082,112.99,112.92,22.9864]
[1644360135552,23.86952378,112.99,112.92,22.9864]
[1644360136556,23.86952378,112.99,112.92,13.5304]
[1644360139058,24.11952378,112.99,112.92,13.5304]
[1644360139657,37.40082378,112.99,112.92,13.2804]
[1644360139957,43.40082378,112.99,112.92,13.2804]
[1644360141263,43.40082378,112.99,112.92,13.5304]
[1644360141859,47.82682378,112.99,112.92,13.5304]
[1644360142260,47.82682378,112.99,112.92,0.25]
[1644360142461,4.426,112.98,112.92,0.25]
[1644360142661,23.7091,112.98,112.91,13.533]
[1644360143563,17.7091,112.98,112.91,13.533]
[1644360143763,13.2831,112.98,112.91,13.533]
[1644360144265,13.5331,112.98,112.91,13.533]
[1644360144667,17.9591,112.98,112.91,13.533]
[1644360144865,13.5331,112.98,112.91,13.533]
[1644360145365,13.2831,112.98,112.91,13.283]
[1644360146167,18.97042378,112.98,112.91,13.283]
[1644360146568,24.97042378,112.98,112.91,13.283]
[1644360146766,25.22042378,112.98,112.91,13.283]
[1644360148169,25.22042378,112.98,112.89,48.6969]
[1644360148368,24.00362378,112.97,112.9,13.2842]
[1644360148669,42.0263,112.97,112.9,13.2842]
[1644360148867,43.28762378,112.97,112.9,13.2842]
[1644360152171,43.53762378,112.97,112.9,13.2842]
[1644360154269,43.53762378,112.97,112.9,13.5342]
[1644360154572,43.53762378,112.97,112.9,13.2842]
[1644360154874,43.53762378,112.97,112.89,13.2855]
[1644360155071,13.2862,112.95,112.89,13.2855]
[1644360155269,12.2862,112.95,112.89,13.2855]
[1644360155475,18.2862,112.95,112.89,13.2855]
[1644360159172,18.5362,112.95,112.89,13.2855]
[1644360160379,18.5362,112.95,112.88,13.2867]
[1644360160578,24.22552378,112.95,112.88,13.2867]
[1644360160779,19.79752378,112.95,112.88,13.2867]
[1644360161878,19.79752378,112.95,112.87,13.2881]
[1644360162077,24.4305,112.94,112.87,13.2881]
[1644360162279,13.2884,112.93,112.83,49.97767537]
[1644360162479,24.4305,112.92,112.85,0.25]
[1644360162779,30.6805,112.92,112.83,48.7251]
[1644360163006,30.6805,112.92,112.83,44.2971]
[1644360163805,43.9701,112.92,112.85,13.2905]
[1644360164307,43.9701,112.92,112.82,116.929]
[1644360164505,4.429,112.91,112.83,0.25]
[1644360164805,10.429,112.91,112.83,0.25]
[1644360165005,22.8681,112.9,112.83,0.25]
[1644360165206,4.43,112.89,112.83,0.25]
[1644360165608,10.43,112.89,112.82,112.75]
[1644360165805,23.723,112.89,112.83,13.2928]
[1644360166008,23.723,112.89,112.8,4.454]
[1644360166207,23.8985,112.88,112.8,0.024]
[1644360166409,4.431,112.87,112.8,6.024]
[1644360166606,6.0,112.87,112.8,0.024]
[1644360167407,13.296,112.86,112.8,13.3205]
[1644360167608,19.296,112.86,112.8,13.3205]
[1644360168210,19.546,112.86,112.8,13.3205]
[1644360171312,19.546,112.86,112.8,13.5705]
[1644360171715,19.546,112.86,112.8,13.3205]
[1644360173918,19.546,112.86,112.8,13.5705]
[1644360174520,19.296,112.86,112.8,13.5705]
[1644360174719,13.296,112.86,112.8,13.3205]
[1644360175118,13.296,112.86,112.8,13.5705]
[1644360175520,17.7256,112.87,112.8,13.5705]
[1644360175919,19.2946,112.87,112.8,13.5705]
[1644360176520,13.2946,112.87,112.8,19.5705]
[1644360176720,13.5446,112.87,112.8,19.5705]
[1644360178925,19.5446,112.87,112.8,19.5705]
[1644360179122,19.5446,112.87,112.8,13.5705]
[1644360179322,23.9756,112.87,112.8,13.5705]
[1644360180322,23.9756,112.87,112.8,13.3205]
[1644360181824,23.9756,112.87,112.8,13.5705]
[1644360183224,19.5446,112.87,112.8,13.5705]
[1644360184028,4.431,112.86,112.8,13.5705]
[1644360184425,10.431,112.86,112.8,13.5705]
[1644360184926,6.0,112.86,112.8,13.5705]
[1644360185126,19.2946,112.87,112.8,13.5705]
[1644360185325,4.431,112.86,112.8,13.5705]
[1644360186529,13.2946,112.87,112.8,13.5705]
[1644360187628,17.7256,112.87,112.8,13.5705]
[1644360188029,4.431,112.87,112.8,13.5705]
[1644360188230,4.431,112.91,112.8,13.5705]
[1644360188429,10.431,112.91,112.8,24.1235]
[1644360188631,10.431,112.91,112.8,30.1235]
[1644360188830,10.681,112.91,112.8,30.1235]
[1644360189033,13.2922,112.89,112.83,13.2913]
[1644360189239,13.2922,112.89,112.83,13.5413]
[1644360190831,13.2922,112.89,112.83,13.2913]
[1644360191032,36.6947,112.9,112.83,13.5413]
[1644360191334,42.6947,112.9,112.83,13.5413]
[1644360192331,42.9447,112.9,112.83,13.5413]
[1644360193935,14.55102378,112.91,112.83,13.5413]
[1644360194135,7.26132378,112.91,112.83,13.5413]
[1644360194336,25.87792378,112.92,112.83,13.5413]
[1644360194534,25.87792378,112.92,112.84,4.429]
[1644360194535,30.6166,112.92,112.84,4.429]
[1644360194733,30.6166,112.92,112.86,13.2883]
[1644360195134,30.6166,112.92,112.86,13.5383]
[1644360195337,30.8666,112.92,112.86,13.5383]
[1644360195734,44.1555,112.92,112.86,13.5383]
[1644360196236,44.1555,112.92,112.86,13.2883]
[1644360200055,19.5389,112.92,112.86,13.2883]
[1644360211274,13.5389,112.92,112.86,13.2883]
[1644360211477,0.25,112.92,112.86,13.2883]
[1644360211675,0.25,112.92,112.86,13.5383]
[1644360211876,36.4895,112.93,112.86,13.5383]
[1644360212475,1.26132378,112.94,112.86,13.5383]
[1644360212677,1.26132378,112.94,112.86,17.9663]
[1644360212878,6.0,112.94,112.86,17.9663]
[1644360213079,11.68932378,112.95,112.86,17.9663]
[1644360213281,24.9609,112.94,112.86,17.9663]
[1644360213778,38.2471,112.94,112.86,17.9663]
[1644360216184,44.2471,112.94,112.86,17.9663]
[1644360216783,44.4971,112.94,112.86,13.5383]
[1644360218084,44.4971,112.94,112.86,19.5383]
[1644360218482,44.4971,112.94,112.86,13.5383]
[1644360218883,48.9251,112.94,112.86,13.5383]
[1644360221885,50.18642378,112.94,112.86,13.5383]
[1644360222085,45.75842378,112.94,112.86,13.5383]
[1644360222285,4.428,112.93,112.86,13.5383]
[1644360222484,44.4971,112.94,112.86,13.5383]
[1644360223698,45.75842378,112.94,112.86,13.5383]
[1644360229392,45.75842378,112.94,112.86,13.851478]
[1644360231116,45.75842378,112.94,112.86,18.279478]
[1644360232116,45.75842378,112.94,112.86,13.851478]
[1644360236523,1.26132378,112.95,112.89,0.31193247]
[1644360236720,1.26132378,112.95,112.9,13.2788]
[1644360236922,0.029591,112.97,112.9,14.67543422]
[1644360237120,0.029591,112.98,112.91,1.39663422]
[1644360237319,0.029591,112.99,112.91,1.64663422]
[1644360237520,1.29091478,113.0,112.93,0.31239581]
[1644360237720,1.26132378,113.0,112.93,0.31239581]
[1644360237921,10.426,113.0,112.91,1.64663422]
[1644360238121,10.455591,113.0,112.91,1.64663422]
[1644360238421,10.455591,113.0,112.93,13.2794]
[1644360238623,10.426,113.0,112.93,13.2794]
[1644360238823,10.426,113.0,112.93,13.5294]
[1644360239027,10.426,113.0,112.93,13.2794]
[1644360240626,10.426,113.0,112.93,13.5294]
[1644360240825,6.0,113.0,112.93,13.5294]
[1644360241227,36.22541478,113.01,112.93,13.5294]
[1644360243028,4.425,113.0,112.93,13.5294]
[1644360243531,10.425,113.0,112.93,13.5294]
[1644360243731,25.79941478,113.01,112.93,14.92603422]
[1644360243930,0.029591,113.01,112.93,14.92603422]
[1644360244133,1.26132378,113.03,112.94,27.5291]
[1644360244331,0.029591,113.01,112.96,13.275]
[1644360244531,0.029591,113.03,112.96,13.275]
[1644360244732,24.87691478,113.04,112.96,13.525]
[1644360244932,35.30091478,113.04,112.96,13.525]
[1644360245333,11.71491478,113.04,112.96,13.525]
[1644360245533,4.453591,113.04,112.96,13.525]
[1644360246338,6.029591,113.04,112.96,37.93]
[1644360246640,0.029591,113.04,112.97,1.39663422]
[1644360246840,0.029591,113.04,112.99,13.272]
[1644360247037,6.0,113.05,112.99,13.272]
[1644360247235,6.0,113.05,112.99,14.91863422]
[1644360247439,6.0,113.06,112.99,14.91863422]
[1644360247637,7.29091478,113.08,112.99,14.91863422]
[1644360247837,6.029591,113.08,112.99,14.91863422]
[1644360248238,0.029591,113.08,112.99,20.91863422]
[1644360248437,6.0,113.08,112.99,20.91863422]
[1644360248638,6.029591,113.08,112.99,20.91863422]
[1644360249037,0.029591,113.08,112.99,20.91863422]
[1644360249239,6.0,113.08,112.99,20.91863422]
[1644360249437,6.029591,113.08,112.99,20.91863422]
[1644360249840,0.029591,113.08,112.99,20.91863422]
[1644360250037,6.0,113.08,113.0,4.423]
[1644360250238,6.029591,113.08,113.02,13.2671]
[1644360250439,6.0,113.08,113.02,13.2671]
[1644360250637,0.029591,113.1,113.02,13.5171]
[1644360250838,31.44321478,113.11,113.02,13.5171]
[1644360251037,30.181891,113.11,113.02,13.5171]
[1644360252040,4.422,113.1,113.02,13.5171]
[1644360252440,10.422,113.1,113.02,13.5171]
[1644360255543,10.422,113.1,113.02,19.5171]
[1644360255746,6.0,113.1,113.02,13.5171]
[1644360255946,6.0,113.1,113.04,13.2668]
[1644360256144,4.422,113.1,113.04,25.1538]
[1644360256545,10.422,113.1,113.04,25.1538]
[1644360257644,6.0,113.1,113.04,25.4038]
[1644360258046,30.181891,113.11,113.04,25.4038]
[1644360258248,30.1523,113.11,113.04,25.4038]
[1644360259646,30.1523,113.11,113.04,29.8248]
[1644360261148,30.4023,113.11,113.04,29.8248]
[1644360261551,30.4023,113.11,113.04,25.4038]
[1644360264051,30.1523,113.11,113.04,25.4038]
[1644360265270,6.0,113.11,113.04,26.80043422]
[1644360265674,0.029591,113.12,113.04,26.80043422]
[1644360265871,0.029591,113.12,113.04,49.98203422]
[1644360266571,0.029591,113.12,113.04,55.98203422]
[1644360267573,30.01492378,113.13,113.04,55.98203422]
[1644360267771,30.04407284,113.13,113.04,56.29471322]
[1644360267972,30.04407284,113.13,113.04,50.29471322]
[1644360268671,34.46507284,113.13,113.04,56.29471322]
[1644360269371,34.46507284,113.13,113.04,50.29471322]
[1644360272078,1.26132378,113.12,113.04,54.71571322]
[1644360272481,6.0,113.12,113.04,54.71571322]
[1644360272884,6.0,113.12,113.04,60.71571322]
[1644360273079,7.29047284,113.13,113.04,60.71571322]
[1644360273283,1.26132378,113.12,113.04,60.71571322]
[1644360273681,7.26132378,113.12,113.04,60.71571322]
[1644360275580,6.0,113.12,113.04,60.71571322]
[1644360275980,1.26132378,113.12,113.04,60.71571322]
[1644360276181,7.26132378,113.12,113.04,60.71571322]
[1644360276583,7.26132378,113.12,113.04,54.71571322]
[1644360276982,7.26132378,113.12,113.04,60.71571322]
[1644360277584,7.26132378,113.12,113.04,54.71571322]
[1644360278390,7.26132378,113.12,113.04,60.71571322]
[1644360278990,7.26132378,113.12,113.04,54.71571322]
[1644360279991,7.26132378,113.12,113.04,29.887479]
[1644360280190,1.26132378,113.11,113.04,18.000479]
[1644360280599,7.26132378,113.11,113.04,18.000479]
[1644360280995,1.26132378,113.1,113.04,18.000479]
[1644360281291,7.26132378,113.1,113.04,18.000479]
[1644360281693,30.97942378,113.1,113.04,18.000479]
[1644360282695,30.97942378,113.1,113.04,18.250479]
[1644360285099,30.97942378,113.1,113.04,13.829479]
[1644360285504,25.97942378,113.1,113.04,13.829479]
[1644360285698,23.7181,113.1,113.04,13.829479]
[1644360285900,28.1401,113.1,113.04,13.829479]
[1644360286402,41.4086,113.1,113.04,13.829479]
[1644360286800,36.9866,113.1,113.04,13.829479]
[1644360287000,37.2366,113.1,113.04,13.829479]
[1644360287199,43.2366,113.1,113.04,13.579479]
[1644360287402,42.9866,113.1,113.04,13.579479]
[1644360288609,42.9866,113.1,113.04,13.829479]
[1644360288806,43.2366,113.1,113.04,13.829479]
[1644360291722,29.9681,113.1,113.04,13.829479]
[1644360292222,29.9681,113.1,113.04,0.562679]
[1644360292423,34.3901,113.1,113.04,0.562679]
[1644360292623,34.3901,113.1,113.04,0.312679]
[1644360292826,29.9681,113.1,113.04,0.312679]
[1644360293627,43.2371,113.1,113.04,0.312679]
[1644360293831,4.422,113.09,113.04,0.312679]
[1644360294034,29.9681,113.1,113.04,0.312679]
[1644360294335,6.0,113.09,113.04,0.312679]
[1644360294534,4.422,113.09,113.04,0.312679]
[1644360294931,10.422,113.09,113.04,0.312679]
[1644360295134,23.6382,113.08,113.04,0.312679]
[1644360295333,17.6956,113.07,113.04,0.312679]
[1644360295732,23.6956,113.07,113.04,0.312679]
[1644360296232,23.9456,113.07,113.04,0.312679]
[1644360296634,19.5236,113.07,113.04,0.312679]
[1644360298938,23.6956,113.07,113.04,0.312679]
[1644360302335,19.2736,113.07,113.04,0.312679]
[1644360302536,19.5236,113.07,113.04,0.312679]
[1644360303837,13.5236,113.07,113.04,0.312679]
[1644360305139,19.5236,113.07,113.04,0.312679]
[1644360305340,23.9456,113.07,113.04,0.312679]
[1644360305943,19.5236,113.07,113.04,0.312679]
[1644360306542,23.9456,113.07,113.04,0.312679]
[1644360307348,23.6956,113.07,113.04,0.312679]
[1644360307948,19.2736,113.07,113.04,0.312679]
[1644360311051,19.5236,113.07,113.04,0.312679]
[1644360312052,23.9456,113.07,113.04,0.312679]
[1644360312550,19.5236,113.07,113.04,0.312679]
[1644360312749,6.0,113.07,113.04,0.312679]
[1644360313151,42.9092,113.08,113.04,0.312679]
[1644360314151,42.4092,113.08,113.04,0.312679]
[1644360314754,42.6592,113.08,113.04,0.312679]
[1644360316351,29.3882,113.08,113.04,0.312679]
[1644360317754,6.25,113.08,113.04,0.312679]
[1644360318855,0.25,113.08,113.04,0.312679]
[1644360319355,29.32034906,113.11,113.04,0.312679]
[1644360319555,33.7122,113.11,113.04,0.312679]
[1644360319755,46.9794,113.11,113.04,13.580679]
[1644360320256,47.2294,113.11,113.04,13.580679]
[1644360320456,33.7122,113.11,113.04,13.580679]
[1644360320656,29.2912,113.11,113.04,13.580679]
[1644360320859,29.2912,113.11,113.04,13.830679]
[1644360321056,6.0,113.11,113.04,21.22734896]
[1644360321258,6.0,113.11,113.04,15.22734896]
[1644360321655,0.02914906,113.12,113.04,15.22734896]
[1644360323059,0.02914906,113.12,113.05,4.421]
[1644360323258,0.02914906,113.12,113.07,13.2627]
[1644360323459,29.453,113.13,113.07,13.2627]
[1644360324060,29.203,113.13,113.07,13.2627]
[1644360325163,29.203,113.13,113.07,13.5127]
[1644360325361,29.453,113.13,113.07,13.5127]
[1644360325560,29.453,113.13,113.07,13.2627]
[1644360326763,29.453,113.13,113.07,13.5127]
[1644360329566,29.203,113.13,113.07,13.5127]
[1644360329967,6.0,113.13,113.07,13.5127]
[1644360330168,10.44914906,113.14,113.07,12.5127]
[1644360330367,0.02914906,113.14,113.07,12.5127]
[1644360330568,30.50934906,113.15,113.07,12.5127]
[1644360330771,0.02914906,113.14,113.07,12.5127]
[1644360330968,30.50934906,113.15,113.07,12.5127]
[1644360331171,30.50934906,113.15,113.07,37.2887]
[1644360332986,30.00934906,113.15,113.07,37.2887]
[1644360333786,30.25934906,113.15,113.07,37.2887]
[1644360333988,30.25934906,113.15,113.07,37.0387]
[1644360335189,30.25934906,113.15,113.07,37.2887]
[1644360335389,30.00934906,113.15,113.07,37.2887]
[1644360336592,30.00934906,113.15,113.07,37.0387]
[1644360336793,30.25934906,113.15,113.07,37.0387]
[1644360338795,30.25934906,113.15,113.07,38.43536996]
[1644360338995,30.00934906,113.15,113.07,38.68536996]
[1644360342299,30.00934906,113.15,113.07,43.10536996]
[1644360342499,24.00934906,113.15,113.07,43.10536996]
[1644360342699,24.25934906,113.15,113.07,43.10536996]
[1644360342900,24.00934906,113.15,113.07,43.10536996]
[1644360343101,24.00934906,113.15,113.07,49.10536996]
[1644360343301,24.00934906,113.15,113.07,44.68536996]
[1644360343699,24.00934906,113.15,113.07,38.68536996]
[1644360343905,30.00934906,113.15,113.07,38.68536996]
[1644360344100,30.00934906,113.15,113.07,44.68536996]
[1644360344300,30.25934906,113.15,113.07,44.68536996]
[1644360344502,30.25934906,113.15,113.07,38.68536996]
[1644360344900,6.27914906,113.15,113.07,38.68536996]
[1644360345099,0.02914906,113.15,113.07,44.68536996]
[1644360345300,6.02914906,113.15,113.07,44.68536996]
[1644360345901,0.02914906,113.15,113.07,44.68536996]
[1644360346902,0.02914906,113.15,113.07,38.68536996]
[1644360347101,0.02914906,113.15,113.07,38.43536996]
[1644360347705,0.02914906,113.15,113.07,44.43536996]
[1644360347905,0.02914906,113.15,113.07,38.43536996]
[1644360348203,0.02914906,113.15,113.07,38.68536996]
[1644360348407,0.02914906,113.15,113.07,44.68536996]
[1644360348704,0.02914906,113.15,113.07,38.68536996]
[1644360349108,0.02914906,113.15,113.07,44.68536996]
[1644360349305,0.02914906,113.15,113.07,38.68536996]
[1644360349707,0.02914906,113.15,113.07,44.68536996]
[1644360350106,0.02914906,113.15,113.07,38.68536996]
[1644360350506,0.02914906,113.15,113.07,44.68536996]
[1644360350907,0.02914906,113.15,113.07,38.68536996]
[1644360351611,0.02914906,113.15,113.07,44.68536996]
[1644360352706,0.02914906,113.15,113.07,49.10536996]
[1644360353106,0.02914906,113.15,113.07,43.10536996]
[1644360353508,0.02914906,113.15,113.07,49.10536996]
[1644360353910,0.02914906,113.15,113.07,43.10536996]
[1644360354508,0.02914906,113.15,113.07,49.10536996]
[1644360354911,0.02914906,113.15,113.07,43.10536996]
[1644360355109,0.02914906,113.15,113.07,49.10536996]
[1644360358313,0.02914906,113.15,113.07,44.68536996]
[1644360361715,0.02914906,113.15,113.07,44.43536996]
[1644360362617,0.02914906,113.15,113.08,4.42]
[1644360362817,0.02914906,113.15,113.1,13.2583]
[1644360363016,22.7872,113.16,113.1,13.2583]
[1644360363216,22.7872,113.16,113.1,13.5083]
[1644360363415,28.7872,113.16,113.1,13.5083]
[1644360365219,6.0,113.16,113.1,13.5083]
[1644360365621,19.28864906,113.17,113.1,13.5083]
[1644360366022,6.02914906,113.17,113.1,36.285]
[1644360366421,0.02914906,113.17,113.1,36.285]
[1644360366623,6.0,113.17,113.11,1.39666996]
[1644360366829,0.02914906,113.17,113.11,1.64666996]
[1644360367026,0.02914906,113.18,113.12,13.2553]
[1644360367226,24.7942,113.19,113.12,36.1225]
[1644360367427,0.02914906,113.19,113.12,36.1225]
[1644360367627,0.02914906,113.2,113.12,52.80316996]
[1644360369028,0.02914906,113.2,113.12,57.22116996]
[1644360373049,0.02914906,113.2,113.12,145.67116996]
[1644360373251,0.02914906,113.22,113.12,145.67116996]
[1644360374458,0.02914906,113.22,113.13,14.22794492]
[1644360374654,0.02914906,113.22,113.15,13.2493]
[1644360374856,23.28944906,113.23,113.15,45.9209]
[1644360375055,0.02914906,113.23,113.15,51.9209]
[1644360375256,0.02914906,113.23,113.16,1.39666996]
[1644360375456,0.47283017,113.24,113.16,1.39666996]
[1644360375656,0.47283017,113.24,113.16,7.39666996]
[1644360375856,0.47283017,113.24,113.16,7.64666996]
[1644360376064,0.47283017,113.24,113.17,1.39666996]
[1644360376255,0.44368111,113.24,113.17,1.64666996]
[1644360376457,0.44368111,113.24,113.17,30.95336996]
[1644360376659,0.44368111,113.24,113.18,1.39666996]
[1644360376859,0.44368111,113.24,113.18,25.88566996]
[1644360377059,0.44368111,113.24,113.18,31.88566996]
[1644360377256,0.44368111,113.24,113.18,26.13566996]
[1644360377558,0.44368111,113.24,113.18,32.13566996]
[1644360377756,0.44368111,113.24,113.18,26.13566996]
[1644360379061,0.44368111,113.24,113.18,32.13566996]
[1644360379966,0.44368111,113.24,113.18,26.13566996]
[1644360380163,0.44368111,113.24,113.18,25.88566996]
[1644360380361,0.44368111,113.24,113.18,30.489]
[1644360380561,0.44368111,113.24,113.18,24.489]
[1644360380761,0.44368111,113.24,113.18,25.88566996]
[1644360382867,0.44368111,113.24,113.18,26.13566996]
[1644360383065,0.44368111,113.24,113.18,25.88566996]
[1644360384163,0.44368111,113.24,113.18,31.88566996]
[1644360384666,0.44368111,113.24,113.18,32.13566996]
[1644360385564,0.44368111,113.24,113.18,26.13566996]
[1644360387669,0.44368111,113.24,113.18,30.55166996]
[1644360391974,0.44368111,113.24,113.18,30.30166996]
[1644360392172,0.44368111,113.24,113.18,36.30166996]
[1644360392375,0.44368111,113.24,113.18,30.30166996]